[Event "Summer Prague Open A 2020"]
[Site "Prague"]
[Date "2020.08.14"]
[Round "8.18"]
[White "Jedlicka, Ales"]
[Black "Mica, Marek"]
[Result "1/2-1/2"]
[ECO "A64"]
[WhiteElo "2212"]
[BlackElo "2324"]
[Annotator "ChessBase"]
[PlyCount "84"]
[EventDate "2020.08.08"]
[EventCountry "CZE"]
[SourceTitle "playchess.com"]
[Source "ChessBase"]
[SourceQuality "1"]
[TimeControl "40/5400+30:1800+30"]

1. d4 {[%emt 0:00:00]} Nf6 {[%emt 0:00:00]} 2. c4 {[%emt 0:00:00]} e6 {[%emt 0:00:00]} 3. g3 {[%emt 0:00:06]} c5 {[%emt 0:00:45]} 4. d5 {[%emt 0:00:19]} exd5 {[%emt 0:00:10]} 5. cxd5 {[%emt 0:00:13]} d6 {[%emt 0:00:12]} 6. Nc3 {[%emt 0:00:13]} g6 {[%emt 0:00:15]} 7. Bg2 {[%emt 0:00:10]} Bg7 {[%emt 0:00:13]} 8. Nf3 {[%emt 0:00:14]} O-O {[%emt 0:00:31]} 9. O-O {[%emt 0:00:21]} Re8 {[%emt 0:00:12]} 10. Nd2 {[%emt 0:00:49]} a6 {[%emt 0:11:42]} 11. a4 {[%emt 0:00:30]} Nbd7 {[%emt 0:01:19]} 12. h3 {[%emt 0:00:35]} Rb8 {[%emt 0:06:27]} 13. a5 {[%emt 0:00:32]} b5 {[%emt 0:03:59]} 14. axb6 {[%emt 0:00:12]} Nxb6 {[%emt 0:00:32]} 15. Nb3 {[%emt 0:04:12]} Nc4 {[%emt 0:04:47]} 16. Ra4 {[%emt 0:06:07]} Qb6 {[%emt 0:11:24]} 17. Rxc4 {[%emt 0:05:41]} Qxb3 {[%emt 0:00:08]} 18. Ra4 {[%emt 0:08:29]} Qb6 {[%emt 0:14:58]} 19. Qd3 {[%emt 0:07:14]} Ra8 {[%emt 0:07:52]} 20. Ra3 {[%emt 0:04:02]} Bd7 {[%emt 0:01:32]} 21. Qc2 {[%emt 0:00:36]} Rab8 {[%emt 0:02:59]} 22. Kh2 {[%emt 0:03:08]} Re7 {[%emt 0:02:03]} 23. e4 {[%emt 0:06:03]} Bb5 {[%emt 0:06:21]} 24. Re1 {[%emt 0:00:33]} Nd7 {[%emt 0:00:51]} 25. Bg5 {[%emt 0:04:24]} f6 {[%emt 0:01:14]} 26. Bd2 {[%emt 0:00:41]} Ne5 {[%emt 0:02:01]} 27. Nxb5 {[%emt 0:00:15]} Qxb5 {[%emt 0:11:20]} 28. b3 {[%emt 0:06:22]} c4 {[%emt 0:07:45]} 29. bxc4 {[%emt 0:01:28]} Nxc4 {[%emt 0:00:28]} 30. Ra2 {[%emt 0:00:29]} Nxd2 {[%emt 0:02:00]} 31. Qxd2 {[%emt 0:00:19]} Rbe8 {[%emt 0:00:16]} 32. Qc2 {[%emt 0:08:29]} f5 {[%emt 0:01:13]} 33. Rb1 {[%emt 0:00:10]} Qd7 {[%emt 0:00:05]} 34. exf5 {[%emt 0:00:22]} gxf5 {[%emt 0:00:21]} 35. Qc6 {[%emt 0:00:32]} f4 {[%emt 0:00:45]} 36. Qxd7 {[%emt 0:00:41]} fxg3+ {[%emt 0:00:14]} 37. fxg3 {[%emt 0:00:45]} Rxd7 {[%emt 0:00:09]} 38. Rxa6 {[%emt 0:00:49]} Be5 {[%emt 0:01:12]} 39. Ra3 {[%emt 0:02:30]} Rc7 {[%emt 0:00:43]} 40. h4 {[%emt 0:04:43]} Rf8 {[%emt 0:00:30]} 41. Rf1 {[%emt 0:30:47]} Rxf1 {[%emt 0:12:00]} 42. Bxf1 {[%emt 0:00:00]} Rc3 {[%emt 0:00:06]} 1/2-1/2

[Event "Summer Prague Open A 2020"]
[Site "Prague"]
[Date "2020.08.14"]
[Round "8.19"]
[White "Malassagne, Raphael"]
[Black "Iolis, Oleg"]
[Result "1/2-1/2"]
[ECO "A45"]
[WhiteElo "2305"]
[BlackElo "2166"]
[Annotator "ChessBase"]
[PlyCount "102"]
[EventDate "2020.08.08"]
[EventCountry "CZE"]
[SourceTitle "playchess.com"]
[Source "ChessBase"]
[SourceQuality "1"]
[TimeControl "40/5400+30:1800+30"]

1. d4 Nf6 2. Bf4 g6 3. Nc3 d5 4. e3 Bg7 5. h4 c5 6. Nb5 Na6 7. c3 cxd4 8. exd4 h5 9. a4 O-O 10. Be2 Re8 11. Nf3 Bg4 12. Ne5 Bxe2 13. Qxe2 Qc8 14. f3 Nd7 15. g4 Nxe5 16. dxe5 hxg4 17. fxg4 Qc4 18. Rf1 Nc5 19. Rf3 Qxe2+ 20. Kxe2 Ne6 21. Bg3 a6 22. Nd4 Nxd4+ 23. cxd4 Rac8 24. Rc3 Rxc3 25. bxc3 Rc8 26. Kd3 Rc6 27. Rb1 b6 28. Bf4 Bf8 29. h5 gxh5 30. gxh5 Kh7 31. Bg5 f6 32. exf6 exf6 33. Bf4 Bh6 34. Rf1 Bxf4 35. Rxf4 Kg7 36. Rf5 Rd6 37. Kc2 Kf7 38. Rf1 Rd8 39. Kd3 Rh8 40. Rh1 b5 41. axb5 axb5 42. Kc2 f5 43. Kd3 Kf6 44. Ke3 Rc8 45. h6 Rxc3+ 46. Kf4 Rc8 47. h7 Rh8 48. Rh6+ Kg7 49. Rb6 Re8 50. Kxf5 Re4 51. Rb7+ Kh6 1/2-1/2

[Event "Summer Prague Open A 2020"]
[Site "Prague"]
[Date "2020.08.14"]
[Round "8.20"]
[White "Vorisek, Jakub"]
[Black "Mirimanian, Hayk"]
[Result "1/2-1/2"]
[ECO "B42"]
[WhiteElo "2221"]
[BlackElo "2268"]
[Annotator "ChessBase"]
[PlyCount "60"]
[EventDate "2020.08.08"]
[EventCountry "CZE"]
[SourceTitle "playchess.com"]
[Source "ChessBase"]
[SourceQuality "1"]
[TimeControl "40/5400+30:1800+30"]

1. e4 c5 2. Nf3 e6 3. d4 cxd4 4. Nxd4 a6 5. Bd3 Bc5 6. Nb3 Ba7 7. O-O Nc6 8. Nc3 Nf6 9. Qe2 d6 10. Bg5 h6 11. Bh4 g5 12. Bg3 e5 13. Kh1 Ne7 14. f3 h5 15. Rad1 Ng6 16. Bf2 Nf4 17. Qd2 Bxf2 18. Rxf2 Be6 19. Bf1 Qb6 20. Na4 Qa7 21. Qxd6 Qxf2 22. Nb6 Bh3 23. gxh3 Qxf3+ 24. Kg1 Qe3+ 25. Kh1 Qxe4+ 26. Kg1 Qe3+ 27. Kh1 Qf3+ 28. Kg1 Qe3+ 29. Kh1 Qe4+ 30. Kg1 Qe3+ 1/2-1/2

[Event "Summer Prague Open A 2020"]
[Site "Prague"]
[Date "2020.08.15"]
[Round "9.4"]
[White "Roseneck, Jonas"]
[Black "Kratochvil, Vit"]
[Result "1-0"]
[ECO "B27"]
[WhiteElo "2416"]
[BlackElo "2205"]
[Annotator "ChessBase"]
[PlyCount "69"]
[EventDate "2020.08.08"]
[EventCountry "CZE"]
[SourceTitle "playchess.com"]
[Source "ChessBase"]
[SourceQuality "1"]
[TimeControl "40/5400+30:1800+30"]

1. e4 {[%emt 0:00:00]} c5 {[%emt 0:00:00]} 2. Nf3 {[%emt 0:00:00]} g6 {[%emt 0:00:00]} 3. d4 {[%emt 0:00:00]} cxd4 {[%emt 0:00:04]} 4. Nxd4 {[%emt 0:00:00]} Bg7 {[%emt 0:00:07]} 5. c4 {[%emt 0:01:44]} Nf6 {[%emt 0:04:20]} 6. Nc3 {[%emt 0:00:44]} d6 {[%emt 0:00:33]} 7. Be2 {[%emt 0:01:17]} O-O {[%emt 0:00:30]} 8. Be3 {[%emt 0:00:40]} Nc6 {[%emt 0:00:41]} 9. f3 {[%emt 0:00:16]} Bd7 {[%emt 0:06:19]} 10. Qd2 {[%emt 0:00:10]} Nxd4 {[%emt 0:00:46]} 11. Bxd4 {[%emt 0:01:29]} a5 {[%emt 0:04:48]} 12. h4 {[%emt 0:03:07]} a4 {[%emt 0:12:39]} 13. h5 {[%emt 0:04:59]} Qa5 {[%emt 0:09:02]} 14. g4 {[%emt 0:00:50]} Rac8 {[%emt 0:27:41]} 15. Kf2 {[%emt 0:13:26]} Be6 {[%emt 0:14:07]} 16. b3 {[%emt 0:03:50]} b5 {[%emt 0:05:08]} 17. h6 {[%emt 0:12:13]} Bh8 {[%emt 0:01:49]} 18. g5 {[%emt 0:03:40]} b4 {[%emt 0:04:33]} 19. gxf6 {[%emt 0:16:23]} bxc3 {[%emt 0:00:09]} 20. Bxc3 {[%emt 0:00:10]} Qb6+ {[%emt 0:00:57]} 21. Bd4 {[%emt 0:00:21]} Qd8 {[%emt 0:00:22]} 22. fxe7 {[%emt 0:01:11]} Qxe7 {[%emt 0:00:03]} 23. Bxh8 {[%emt 0:00:56]} Kxh8 {[%emt 0:00:02]} 24. Qd4+ {[%emt 0:00:21]} f6 {[%emt 0:00:09]} 25. Rad1 {[%emt 0:00:54]} Rc6 {[%emt 0:01:25]} 26. b4 {[%emt 0:04:39]} Qc7 {[%emt 0:03:02]} 27. b5 {[%emt 0:00:32]} Rb6 {[%emt 0:00:17]} 28. Rd2 {[%emt 0:00:51]} Kg8 {[%emt 0:02:10]} 29. f4 {[%emt 0:05:29]} f5 {[%emt 0:01:15]} 30. e5 {[%emt 0:01:03]} Rd8 {[%emt 0:01:24]} 31. c5 {[%emt 0:01:04]} Rbb8 {[%emt 0:00:12]} 32. exd6 {[%emt 0:00:19]} Qf7 {[%emt 0:00:17]} 33. c6 {[%emt 0:01:28]} Rbc8 {[%emt 0:00:08]} 34. d7 {[%emt 0:00:54]} Ra8 {[%emt 0:00:37]} 35. b6 {[%emt 0:00:45]} 1-0

[Event "Summer Prague Open A 2020"]
[Site "Prague"]
[Date "2020.08.15"]
[Round "9.9"]
[White "Mladek, Richard"]
[Black "Richter, Philipp"]
[Result "1/2-1/2"]
[ECO "C05"]
[WhiteElo "2280"]
[BlackElo "2127"]
[Annotator "ChessBase"]
[PlyCount "70"]
[EventDate "2020.08.08"]
[EventCountry "CZE"]
[SourceTitle "playchess.com"]
[Source "ChessBase"]
[SourceQuality "1"]
[TimeControl "40/5400+30:1800+30"]

1. e4 {[%emt 0:00:00]} e6 {[%emt 0:00:00]} 2. d4 {[%emt 0:00:00]} d5 {[%emt 0:00:00]} 3. Nd2 {[%emt 0:00:00]} Nf6 {[%emt 0:00:00]} 4. e5 {[%emt 0:00:00]} Nfd7 {[%emt 0:00:00]} 5. Bd3 {[%emt 0:00:00]} c5 {[%emt 0:00:00]} 6. c3 {[%emt 0:00:00]} Nc6 {[%emt 0:00:00]} 7. Ngf3 {[%emt 0:00:02]} g6 {[%emt 0:00:00]} 8. O-O {[%emt 0:00:42]} Bg7 {[%emt 0:00:03]} 9. Re1 {[%emt 0:00:49]} O-O {[%emt 0:00:05]} 10. a3 {[%emt 0:05:42]} Qb6 {[%emt 0:00:30]} 11. b4 {[%emt 0:00:36]} cxd4 {[%emt 0:00:15]} 12. cxd4 {[%emt 0:00:03]} Nxd4 {[%emt 0:00:28]} 13. Bb2 {[%emt 0:00:37]} Nc6 {[%emt 0:00:44]} 14. b5 {[%emt 0:02:47]} Nc5 {[%emt 0:01:16]} 15. Bf1 {[%emt 0:01:16]} a6 {[%emt 0:03:04]} 16. a4 {[%emt 0:05:53]} axb5 {[%emt 0:04:23]} 17. axb5 {[%emt 0:00:03]} Rxa1 {[%emt 0:00:11]} 18. Bxa1 {[%emt 0:00:33]} Ne7 {[%emt 0:02:59]} 19. Qc2 {[%emt 0:00:51]} Nd7 {[%emt 0:02:30]} 20. Nb3 {[%emt 0:01:24]} f6 {[%emt 0:03:09]} 21. Bd4 {[%emt 0:00:30]} Qd8 {[%emt 0:00:14]} 22. exf6 {[%emt 0:06:27]} Nxf6 {[%emt 0:00:11]} 23. Nc5 {[%emt 0:08:22]} Nf5 {[%emt 0:05:22]} 24. Nxe6 {[%emt 0:01:57]} Bxe6 {[%emt 0:00:14]} 25. Rxe6 {[%emt 0:00:13]} Nxd4 {[%emt 0:01:11]} 26. Nxd4 {[%emt 0:00:02]} Ne4 {[%emt 0:01:29]} 27. Rxe4 {[%emt 0:03:38]} dxe4 {[%emt 0:00:18]} 28. Bc4+ {[%emt 0:01:04]} Kh8 {[%emt 0:00:08]} 29. Ne6 {[%emt 0:00:38]} Qe7 {[%emt 0:01:30]} 30. Nxf8 {[%emt 0:00:07]} Bxf8 {[%emt 0:00:10]} 31. Qd2 {[%emt 0:07:51]} Qe5 {[%emt 0:09:09]} 32. Qd8 {[%emt 0:04:37]} Kg7 {[%emt 0:01:05]} 33. Qd7+ {[%emt 0:01:26]} Kh6 {[%emt 0:03:02]} 34. Qh3+ {[%emt 0:05:33]} Kg7 {[%emt 0:01:05]} 35. Qd7+ {[%emt 0:00:07]} Kh6 {[%emt 0:00:11]} 1/2-1/2

[Event "Summer Prague Open A 2020"]
[Site "Prague"]
[Date "2020.08.15"]
[Round "9.10"]
[White "Defromont, Benjamin"]
[Black "Csiki, Endre"]
[Result "1/2-1/2"]
[ECO "C47"]
[WhiteElo "2236"]
[BlackElo "2266"]
[Annotator "ChessBase"]
[PlyCount "56"]
[EventDate "2020.08.08"]
[EventCountry "CZE"]
[SourceTitle "playchess.com"]
[Source "ChessBase"]
[SourceQuality "1"]
[TimeControl "40/5400+30:1800+30"]

1. e4 e5 2. Nf3 Nc6 3. Nc3 Nf6 4. d4 exd4 5. Nxd4 Bb4 6. Nxc6 bxc6 7. Bd3 d5 8. exd5 O-O 9. O-O cxd5 10. Qf3 c6 11. Bg5 Be7 12. h3 Be6 13. Ne2 h6 14. Bf4 c5 15. Ng3 Bd6 16. Rfe1 Bxf4 17. Qxf4 Qb8 18. Qxb8 Raxb8 19. b3 Rfe8 20. Rad1 Kf8 21. Be2 Bd7 22. Bf3 Rxe1+ 23. Rxe1 Re8 24. Rxe8+ Kxe8 25. Nh5 Nxh5 26. Bxh5 Bf5 27. Bf3 Bxc2 28. Bxd5 Ke7 1/2-1/2

[Event "Summer Prague Open A 2020"]
[Site "Prague"]
[Date "2020.08.15"]
[Round "9.11"]
[White "Slampa, Jan"]
[Black "Marakovits, Nico"]
[Result "1-0"]
[ECO "B30"]
[WhiteElo "2264"]
[BlackElo "2105"]
[Annotator "ChessBase"]
[PlyCount "77"]
[EventDate "2020.08.08"]
[EventCountry "CZE"]
[SourceTitle "playchess.com"]
[Source "ChessBase"]
[SourceQuality "1"]
[TimeControl "40/5400+30:1800+30"]

1. e4 c5 2. Nf3 Nc6 3. Nc3 e5 4. Bc4 d6 5. d3 Be7 6. Be3 Nf6 7. h3 h6 8. a3 a6 9. Nd5 Nd4 10. Nh2 Nxd5 11. Bxd5 O-O 12. c3 Ne6 13. Qd2 Bg5 14. O-O Bxe3 15. fxe3 Nc7 16. Ba2 Be6 17. b4 cxb4 18. axb4 d5 19. exd5 Bxd5 20. c4 Be6 21. Qc3 Qg5 22. Rf3 Rac8 23. Kh1 Nb5 24. Qe1 Nd6 25. Rg3 Qe7 26. e4 b5 27. c5 Ne8 28. Ng4 Bxg4 29. Rxg4 Nf6 30. Qh4 Rc7 31. Rg3 Kh7 32. Rf1 a5 33. Rgf3 Rc6 34. g4 Nd5 35. Qxe7 Nxe7 36. Rxf7 Rxf7 37. Rxf7 Ng6 38. Bd5 Rc8 39. Bb7 1-0

[Event "Summer Prague Open A 2020"]
[Site "Prague"]
[Date "2020.08.15"]
[Round "9.13"]
[White "Schnider, Gert"]
[Black "Jedlicka, Ales"]
[Result "1-0"]
[ECO "E94"]
[WhiteElo "2423"]
[BlackElo "2194"]
[Annotator "ChessBase"]
[PlyCount "119"]
[EventDate "2020.08.08"]
[EventCountry "CZE"]
[SourceTitle "playchess.com"]
[Source "ChessBase"]
[SourceQuality "1"]
[TimeControl "40/5400+30:1800+30"]

1. d4 {[%emt 0:00:00]} Nf6 {[%emt 0:00:00]} 2. c4 {[%emt 0:00:00]} g6 {[%emt 0:00:11]} 3. Nc3 {[%emt 0:00:00]} Bg7 {[%emt 0:00:10]} 4. e4 {[%emt 0:00:00]} d6 {[%emt 0:00:15]} 5. Nf3 {[%emt 0:00:00]} O-O {[%emt 0:00:16]} 6. Be2 {[%emt 0:00:00]} e5 {[%emt 0:00:19]} 7. O-O {[%emt 0:00:02]} exd4 {[%emt 0:00:40]} 8. Nxd4 {[%emt 0:00:05]} Re8 {[%emt 0:00:12]} 9. f3 {[%emt 0:00:04]} c6 {[%emt 0:00:19]} 10. Kh1 {[%emt 0:00:04]} Nbd7 {[%emt 0:00:29]} 11. Bg5 {[%emt 0:00:21]} Qb6 {[%emt 0:00:34]} 12. Nb3 {[%emt 0:00:07]} a5 {[%emt 0:00:17]} 13. Qd2 {[%emt 0:00:05]} a4 {[%emt 0:00:21]} 14. Be3 {[%emt 0:00:05]} Qd8 {[%emt 0:00:15]} 15. Nd4 {[%emt 0:00:10]} Nc5 {[%emt 0:00:55]} 16. Rad1 {[%emt 0:01:00]} Nfd7 {[%emt 0:00:36]} 17. Rfe1 {[%emt 0:04:04]} Qe7 {[%emt 0:06:34]} 18. Bf1 {[%emt 0:01:08]} Be5 {[%emt 0:01:48]} 19. Bg5 {[%emt 0:06:42]} Qf8 {[%emt 0:03:54]} 20. Nde2 {[%emt 0:04:47]} Nb6 {[%emt 0:01:15]} 21. Nd4 {[%emt 0:09:42]} Ne6 {[%emt 0:07:30]} 22. Be3 {[%emt 0:00:13]} Nxd4 {[%emt 0:01:24]} 23. Bxd4 {[%emt 0:00:06]} c5 {[%emt 0:00:23]} 24. Bf2 {[%emt 0:05:59]} Be6 {[%emt 0:02:58]} 25. Nb5 {[%emt 0:07:17]} Bxc4 {[%emt 0:16:56]} 26. f4 {[%emt 0:01:35]} Bxf1 {[%emt 0:00:58]} 27. Rxf1 {[%emt 0:00:07]} Nc4 {[%emt 0:05:27]} 28. Qc2 {[%emt 0:08:58]} Nxb2 {[%emt 0:00:35]} 29. fxe5 {[%emt 0:00:05]} Nxd1 {[%emt 0:00:32]} 30. Rxd1 {[%emt 0:00:02]} Rxe5 {[%emt 0:03:29]} 31. Bg3 {[%emt 0:00:30]} Rg5 {[%emt 0:03:56]} 32. Bxd6 {[%emt 0:01:40]} Qg7 {[%emt 0:01:19]} 33. e5 {[%emt 0:05:51]} Rxe5 {[%emt 0:02:25]} 34. Bxe5 {[%emt 0:00:05]} Qxe5 {[%emt 0:00:15]} 35. h3 {[%emt 0:00:21]} a3 {[%emt 0:01:52]} 36. Qc4 {[%emt 0:09:06]} Ra6 {[%emt 0:07:23]} 37. Nc3 {[%emt 0:07:28]} Re6 {[%emt 0:08:25]} 38. Rf1 {[%emt 0:05:15]} Qd4 {[%emt 0:03:34]} 39. Qxd4 {[%emt 0:04:53]} cxd4 {[%emt 0:00:09]} 40. Nb5 {[%emt 0:00:02]} Re2 {[%emt 0:01:02]} 41. Nxa3 {[%emt 0:30:28]} Rxa2 {[%emt 0:30:13]} 42. Nb5 {[%emt 0:00:09]} d3 {[%emt 0:02:25]} 43. Rd1 {[%emt 0:02:06]} d2 {[%emt 0:04:29]} 44. Nd4 {[%emt 0:01:33]} Kg7 {[%emt 0:02:06]} 45. Kg1 {[%emt 0:00:10]} Kf6 {[%emt 0:00:13]} 46. Kf2 {[%emt 0:00:06]} g5 {[%emt 0:02:02]} 47. Ke3 {[%emt 0:01:22]} h5 {[%emt 0:00:30]} 48. Nf3 {[%emt 0:04:57]} g4 {[%emt 0:00:54]} 49. hxg4 {[%emt 0:00:05]} hxg4 {[%emt 0:00:09]} 50. Nxd2 {[%emt 0:00:06]} Ke5 {[%emt 0:01:24]} 51. Nc4+ {[%emt 0:00:41]} Kf5 {[%emt 0:00:58]} 52. Rd5+ {[%emt 0:09:30]} Ke6 {[%emt 0:00:29]} 53. Rd6+ {[%emt 0:00:53]} Kf5 {[%emt 0:00:22]} 54. g3 {[%emt 0:04:32]} Rg2 {[%emt 0:02:18]} 55. Rd5+ {[%emt 0:00:20]} Ke6 {[%emt 0:00:11]} 56. Re5+ {[%emt 0:00:46]} Kf6 {[%emt 0:00:07]} 57. Kf4 {[%emt 0:00:29]} Rc2 {[%emt 0:02:14]} 58. Re4 {[%emt 0:00:20]} b5 {[%emt 0:01:47]} 59. Ne3 {[%emt 0:00:21]} Rf2+ {[%emt 0:00:28]} 60. Kxg4 {[%emt 0:00:06]} 1-0

[Event "Summer Prague Open A 2020"]
[Site "Prague"]
[Date "2020.08.15"]
[Round "9.14"]
[White "Mica, Marek"]
[Black "Vorisek, Jakub"]
[Result "1-0"]
[ECO "A58"]
[WhiteElo "2306"]
[BlackElo "2205"]
[Annotator "ChessBase"]
[PlyCount "53"]
[EventDate "2020.08.08"]
[EventCountry "CZE"]
[SourceTitle "playchess.com"]
[Source "ChessBase"]
[SourceQuality "1"]
[TimeControl "40/5400+30:1800+30"]

1. d4 Nf6 2. c4 c5 3. d5 b5 4. cxb5 a6 5. bxa6 g6 6. Nc3 Bg7 7. e4 O-O 8. e5 Ne8 9. Nf3 d6 10. exd6 exd6 11. Be2 Qa5 12. Bd2 Bxa6 13. O-O Nc7 14. a4 Bxe2 15. Qxe2 Qb6 16. Bf4 Re8 17. Qd2 Nd7 18. Rfe1 Reb8 19. Re2 c4 20. Re4 Nc5 21. Rxc4 Nb3 22. Qd1 Nxa1 23. Qxa1 Bxc3 24. Rxc3 Nxd5 25. Be3 Qxb2 26. Rc8+ Rxc8 27. Qxb2 1-0

[Event "Summer Prague Open A 2020"]
[Site "Prague"]
[Date "2020.08.15"]
[Round "9.17"]
[White "Post, Hugo"]
[Black "Pasti, Aron"]
[Result "0-1"]
[ECO "C99"]
[WhiteElo "2203"]
[BlackElo "2325"]
[Annotator "ChessBase"]
[PlyCount "78"]
[EventDate "2020.08.08"]
[EventCountry "CZE"]
[SourceTitle "playchess.com"]
[Source "ChessBase"]
[SourceQuality "1"]
[TimeControl "40/5400+30:1800+30"]

1. e4 {[%emt 0:00:00]} e5 {[%emt 0:00:00]} 2. Nf3 {[%emt 0:00:00]} Nc6 {[%emt 0:00:00]} 3. Bb5 {[%emt 0:00:00]} a6 {[%emt 0:00:00]} 4. Ba4 {[%emt 0:00:00]} Nf6 {[%emt 0:00:00]} 5. O-O {[%emt 0:00:00]} Be7 {[%emt 0:00:00]} 6. Re1 {[%emt 0:00:02]} b5 {[%emt 0:00:00]} 7. Bb3 {[%emt 0:00:05]} d6 {[%emt 0:00:00]} 8. c3 {[%emt 0:00:07]} O-O {[%emt 0:00:06]} 9. h3 {[%emt 0:00:05]} Na5 {[%emt 0:00:04]} 10. Bc2 {[%emt 0:00:05]} c5 {[%emt 0:00:04]} 11. d4 {[%emt 0:00:13]} Qc7 {[%emt 0:00:04]} 12. Nbd2 {[%emt 0:00:10]} cxd4 {[%emt 0:00:04]} 13. cxd4 {[%emt 0:00:06]} Nc6 {[%emt 0:00:03]} 14. Nb3 {[%emt 0:00:09]} a5 {[%emt 0:00:10]} 15. Be3 {[%emt 0:00:12]} a4 {[%emt 0:00:06]} 16. Nbd2 {[%emt 0:00:07]} Nb4 {[%emt 0:00:15]} 17. Bb1 {[%emt 0:00:15]} Bd7 {[%emt 0:01:39]} 18. a3 {[%emt 0:00:27]} Nc6 {[%emt 0:00:17]} 19. Bd3 {[%emt 0:00:20]} Rfc8 {[%emt 0:01:26]} 20. Qe2 {[%emt 0:13:58]} Rab8 {[%emt 0:02:52]} 21. Rac1 {[%emt 0:03:29]} Qb7 {[%emt 0:00:24]} 22. Nf1 {[%emt 0:04:46]} Bf8 {[%emt 0:07:46]} 23. Ng3 {[%emt 0:03:11]} g6 {[%emt 0:01:34]} 24. Qd2 {[%emt 0:14:05]} b4 {[%emt 0:16:51]} 25. d5 {[%emt 0:07:40]} Na5 {[%emt 0:01:07]} 26. Rxc8 {[%emt 0:01:47]} Qxc8 {[%emt 0:00:52]} 27. axb4 {[%emt 0:05:18]} Nb3 {[%emt 0:01:04]} 28. Qc3 {[%emt 0:06:05]} Qb7 {[%emt 0:00:21]} 29. b5 {[%emt 0:00:43]} Bxb5 {[%emt 0:01:14]} 30. Bxb5 {[%emt 0:00:44]} Qxb5 {[%emt 0:00:03]} 31. Bg5 {[%emt 0:06:18]} Nd7 {[%emt 0:01:30]} 32. Nh4 {[%emt 0:06:22]} Nd4 {[%emt 0:02:36]} 33. Rb1 {[%emt 0:04:51]} Nc5 {[%emt 0:00:10]} 34. Be3 {[%emt 0:01:43]} Nxe4 {[%emt 0:01:27]} 35. Qc7 {[%emt 0:03:43]} Nxg3 {[%emt 0:00:27]} 36. fxg3 {[%emt 0:00:02]} a3 {[%emt 0:01:32]} 37. Rf1 {[%emt 0:04:41]} Rb7 {[%emt 0:02:34]} 38. Qd8 {[%emt 0:04:51]} Qxf1+ {[%emt 0:00:26]} 39. Kxf1 {[%emt 0:00:11]} axb2 {[%emt 0:00:02]} 0-1

[Event "Summer Prague Open A 2020"]
[Site "Prague"]
[Date "2020.08.15"]
[Round "9.20"]
[White "Jun, Rudolf"]
[Black "Brejnik, Gustav"]
[Result "1/2-1/2"]
[ECO "B10"]
[WhiteElo "2094"]
[BlackElo "2265"]
[Annotator "ChessBase"]
[PlyCount "34"]
[EventDate "2020.08.08"]
[EventCountry "CZE"]
[SourceTitle "playchess.com"]
[Source "ChessBase"]
[SourceQuality "1"]
[TimeControl "40/5400+30:1800+30"]

1. e4 c6 2. d3 d5 3. Nd2 e5 4. Ngf3 Bd6 5. g3 Nf6 6. Bg2 O-O 7. O-O Nbd7 8. Re1 Qc7 9. a4 a5 10. b3 Re8 11. Bb2 b6 12. d4 dxe4 13. Nxe5 Nxe5 14. dxe5 Bxe5 15. Nxe4 Nxe4 16. Bxe5 Rxe5 17. Bxe4 Bf5 1/2-1/2